bitfinex/quotes_BTCUSD_20251201
["timestamp","ask_amount","ask_price","bid_price","bid_amount"]
[1764549116098,0.37,88417.0,88415.0,0.22620596]
[1764549116279,0.00728,88416.0,88415.0,0.22620596]
[1764549116480,0.37728,88416.0,88415.0,0.22620596]
[1764549116684,0.37728,88416.0,88414.0,0.01170666]
[1764549116685,0.01088838,88415.0,88414.0,0.00039624]
[1764549116897,0.41088838,88415.0,88414.0,0.00039624]
[1764549117312,0.4,88415.0,88414.0,0.00039624]
[1764549118042,0.77299,88415.0,88414.0,0.00039624]
[1764549118197,0.78387838,88415.0,88414.0,0.00039624]
[1764549118618,0.84640137,88415.0,88414.0,0.00039624]
[1764549118820,0.85632754,88415.0,88414.0,0.00039624]
[1764549119017,0.81667183,88415.0,88414.0,0.00039624]
[1764549119241,0.79115838,88415.0,88414.0,0.00039624]
[1764549119418,0.96481154,88415.0,88414.0,0.00039624]
[1764549119843,0.98767807,88415.0,88414.0,0.00039624]
[1764549120042,0.96481154,88415.0,88414.0,0.00039624]
[1764549120500,0.0113149,88379.0,88367.0,0.22632644]
[1764549120699,0.01088838,88377.0,88370.0,0.01131605]
[1764549120912,0.10701525,88376.0,88370.0,0.23763632]
[1764549121054,0.49701525,88376.0,88373.0,0.01131567]
[1764549121261,0.01088838,88373.0,88371.0,0.01131592]
[1764549121459,0.01088838,88369.0,88367.0,0.00011882]
[1764549121690,0.42088838,88369.0,88367.0,0.00011882]
[1764549121883,0.42088838,88369.0,88367.0,0.22644702]
[1764549122117,0.41,88369.0,88367.0,0.00011882]
[1764549122282,0.49089363,88368.0,88367.0,0.00011882]
[1764549122497,0.87089363,88368.0,88367.0,0.00011882]
[1764549122708,0.87089363,88368.0,88367.0,0.00111882]
[1764549122937,0.93341662,88368.0,88367.0,0.00111882]
[1764549123136,0.81551299,88368.0,88367.0,0.00111882]
[1764549123372,0.85907084,88368.0,88367.0,0.00111882]
[1764549123552,5.88764403,88368.0,88367.0,1e-08]
[1764549123764,0.62282219,88335.0,88306.0,0.01144009]
[1764549123931,1.05960219,88335.0,88334.0,0.0001402]
[1764549124336,0.92711513,88335.0,88334.0,0.0001402]
[1764549124559,1.16080595,88335.0,88334.0,0.0001402]
[1764549124968,1.16280595,88335.0,88334.0,0.0001402]
[1764549125383,2.76741795,88335.0,88334.0,0.0001402]
[1764549125592,0.54948261,88307.0,88300.0,0.01582572]
[1764549125808,1.08006931,88307.0,88300.0,0.01582572]
[1764549126097,0.61202099,88301.0,88300.0,0.01582572]
[1764549126304,0.96290937,88301.0,88300.0,0.01582572]
[1764549126477,1.01229937,88301.0,88300.0,0.01582572]
[1764549126862,4.43911137,88301.0,88300.0,0.01582572]
[1764549127059,2.56685382,88301.0,88300.0,0.01582572]
[1764549127282,1.70668337,88301.0,88300.0,0.01582572]
[1764549127483,1.75344037,88301.0,88300.0,0.01582572]
[1764549127687,1.87678237,88301.0,88300.0,0.01582572]
[1764549127865,5.20065237,88301.0,88300.0,0.01582572]
[1764549128066,1.01429937,88301.0,88300.0,0.01582572]
[1764549128289,1.03157937,88301.0,88300.0,0.01582572]
[1764549128489,1.85069137,88301.0,88300.0,0.01582572]
[1764549128658,1.35372537,88301.0,88300.0,0.01582572]
[1764549128870,1.02157937,88301.0,88300.0,0.01582572]
[1764549129119,1.92673627,88301.0,88300.0,0.01582572]
[1764549129275,3.60668827,88301.0,88300.0,0.01582572]
[1764549129476,3.60668827,88301.0,88288.0,1e-08]
[1764549129477,0.62294015,88289.0,88288.0,1e-08]
[1764549129701,1.34533415,88289.0,88288.0,1e-08]
[1764549129863,1.39483415,88289.0,88288.0,1e-08]
[1764549130081,1.25028665,88289.0,88288.0,1e-08]
[1764549130381,5.04584915,88289.0,88288.0,1e-08]
[1764549131251,3.37512477,88289.0,88288.0,1e-08]
[1764549131454,3.24698427,88289.0,88288.0,1e-08]
[1764549131652,4.58436827,88289.0,88288.0,0.00141775]
[1764549131874,5.59391827,88289.0,88288.0,0.00141775]
[1764549132087,5.42903427,88289.0,88288.0,0.00141775]
[1764549132288,2.84150515,88289.0,88288.0,0.00141775]
[1764549132483,3.25913615,88289.0,88288.0,0.00141775]
[1764549132802,3.36536515,88289.0,88288.0,0.00141775]
[1764549133018,3.53271315,88289.0,88288.0,0.00141775]
[1764549133205,3.53095215,88289.0,88288.0,1e-08]
[1764549133344,0.62302229,88257.0,88256.0,0.001133]
[1764549133548,0.98030229,88257.0,88256.0,0.001133]
[1764549133837,1.02980229,88257.0,88256.0,0.001133]
[1764549134215,6.06141625,88257.0,88256.0,0.00161987]
[1764549134388,0.01133105,88253.0,88250.0,0.0166]
[1764549134588,0.72424145,88251.0,88250.0,0.0166]
[1764549134770,0.61218527,88237.0,88223.0,0.03074744]
[1764549134974,1.04035365,88237.0,88223.0,0.03074744]
[1764549135176,1.08985365,88237.0,88223.0,0.03074744]
[1764549136317,0.78978,88237.0,88223.0,0.03074744]
[1764549136726,0.80166838,88237.0,88223.0,0.03074744]
[1764549136956,0.61220582,88229.0,88223.0,0.03074744]
[1764549137169,0.9530942,88229.0,88228.0,0.10170402]
[1764549137342,0.9530942,88229.0,88223.0,0.03074744]
[1764549137343,6.06107332,88229.0,88223.0,0.03074744]
[1764549137517,0.62310705,88224.0,88223.0,0.03074744]
[1764549137720,1.66737805,88224.0,88223.0,0.03074744]
[1764549137901,1.86113905,88224.0,88223.0,0.03074744]
[1764549138241,1.8100849,88224.0,88223.0,0.03074744]
[1764549138540,1.7472019,88224.0,88223.0,0.03074744]
[1764549138701,1.0773119,88224.0,88223.0,0.03074744]
[1764549138846,1.2609959,88224.0,88223.0,0.03074744]
[1764549139055,2.1854469,88224.0,88223.0,0.03074744]
[1764549139289,4.82428921,88224.0,88223.0,1e-08]
[1764549139645,1.0783119,88224.0,88223.0,1e-08]
[1764549139799,2.94857152,88224.0,88223.0,1e-08]
[1764549140002,4.2902859,88224.0,88223.0,1e-08]
[1764549140202,4.6322549,88224.0,88223.0,1e-08]
[1764549140413,6.0783119,88224.0,88223.0,1e-08]
[1764549140613,6.18829102,88224.0,88223.0,1e-08]
[1764549140813,1.18829102,88224.0,88223.0,1e-08]
[1764549141030,1.18876102,88224.0,88223.0,1e-08]
[1764549141229,6.18676102,88224.0,88223.0,1e-08]
[1764549141451,5.6766189,88224.0,88223.0,1e-08]
[1764549141857,1.0777819,88224.0,88223.0,1e-08]
[1764549142030,1.0817819,88224.0,88223.0,1e-08]
[1764549142236,0.06207,88161.0,88138.0,0.0372476]
[1764549142461,0.06207,88161.0,88138.0,0.0336576]
[1764549142462,0.04515,88139.0,88138.0,0.0336576]
[1764549142644,0.37156559,88139.0,88138.0,0.0336576]
[1764549142835,0.42834559,88139.0,88138.0,0.0336576]
[1764549143034,0.43923397,88139.0,88138.0,0.0336576]
[1764549143469,0.43962809,88139.0,88138.0,0.0336576]
[1764549143671,0.37051834,88139.0,88138.0,0.0336576]
[1764549144051,0.38140672,88139.0,88138.0,0.0336576]
[1764549144390,0.43090672,88139.0,88138.0,0.0336576]
[1764549144589,0.38240672,88139.0,88138.0,0.0436576]
[1764549144789,0.37512672,88139.0,88138.0,0.0436576]
[1764549144988,0.37151834,88139.0,88138.0,0.0436576]
[1764549145322,0.36423834,88139.0,88138.0,0.0436576]
[1764549145598,0.36814374,88139.0,88138.0,0.1391522]
[1764549146199,0.36086374,88139.0,88138.0,0.1391522]
[1764549146401,0.36086374,88139.0,88131.0,0.04879369]
[1764549146600,0.25986374,88139.0,88138.0,0.22691688]
[1764549146849,0.26718374,88139.0,88138.0,0.22691688]
[1764549147054,0.36871412,88139.0,88138.0,0.10485]
[1764549147390,0.01133632,88212.0,88169.0,0.01134185]
[1764549147592,0.01088838,88179.0,88169.0,0.00011885]
[1764549147818,0.01088838,88175.0,88169.0,0.0114607]
[1764549148021,0.01088838,88175.0,88173.0,0.01134134]
[1764549148022,0.34,88175.0,88173.0,0.01134134]
[1764549148217,0.00732,88174.0,88170.0,0.22683452]
[1764549148421,0.36732,88174.0,88171.0,0.23817339]
[1764549148619,0.09676,88173.0,88169.0,0.00011885]
[1764549148879,0.01088838,88170.0,88169.0,0.00011885]
[1764549149075,0.35088838,88170.0,88169.0,0.00011885]
[1764549149347,0.34,88170.0,88169.0,0.00011885]
[1764549149801,0.35088838,88170.0,88169.0,0.00011885]
[1764549149994,0.34,88170.0,88169.0,0.00411885]
[1764549150155,0.6744829,88170.0,88169.0,0.00411885]
[1764549150337,0.6744829,88170.0,88169.0,0.00011885]
[1764549150541,0.01134442,88149.0,88130.0,0.22693742]
[1764549150880,0.36,88149.0,88148.0,0.22689113]
[1764549151609,0.36,88149.0,88148.0,0.23863113]
[1764549151815,0.34826,88149.0,88148.0,0.23863113]
[1764549152089,0.01133851,88195.0,88148.0,0.23863113]
[1764549152090,0.04818,88191.0,88181.0,0.01134031]
[1764549152247,0.01088838,88185.0,88184.0,0.01133992]
[1764549152432,0.01088838,88185.0,88177.0,0.22681432]
[1764549152433,0.44809979,88185.0,88160.0,0.00999999]
[1764549152630,0.04818,88161.0,88159.0,0.22686095]
[1764549152835,0.04818,88161.0,88158.0,0.01134327]
[1764549152836,0.34,88161.0,88160.0,0.10120376]
[1764549153037,0.41976,88201.0,88160.0,0.10120376]
[1764549153038,0.01088838,88196.0,88190.0,0.01133915]
[1764549153240,0.04818,88191.0,88190.0,0.00011889]
[1764549153472,0.40906838,88191.0,88190.0,0.00011889]
[1764549153877,0.49494,88191.0,88190.0,0.00011889]
[1764549154079,0.01134121,88174.0,88165.0,0.01134236]
[1764549154280,0.23818228,88168.0,88165.0,0.00011871]
[1764549154474,0.23818228,88168.0,88130.0,0.01024727]
[1764549154475,0.01088838,88149.0,88141.0,0.01134545]
[1764549154776,0.40011825,88149.0,88146.0,0.01134481]
[1764549154978,0.40011825,88149.0,88147.0,0.22689371]
[1764549155201,0.40011825,88149.0,88148.0,0.10120376]
[1764549155718,0.40011825,88149.0,88147.0,0.22689371]
[1764549155924,0.40011825,88149.0,88143.0,0.0113452]
[1764549155925,0.09676,88148.0,88144.0,0.01134507]
[1764549156135,0.00777,88147.0,88130.0,0.56356149]
[1764549156337,0.01134635,88134.0,88130.0,0.00024728]
[1764549156540,0.36,88134.0,88130.0,0.00024728]
[1764549156743,0.36,88134.0,88131.0,0.01134674]
[1764549156942,0.36,88134.0,88131.0,0.23852079]
[1764549157142,0.36,88134.0,88131.0,0.23828079]
[1764549157341,0.36,88134.0,88133.0,0.22692975]
[1764549157540,0.36,88134.0,88133.0,0.62692975]
[1764549157822,0.36,88134.0,88131.0,0.01434674]
[1764549158046,0.01088838,88132.0,88131.0,0.003]
[1764549158249,0.01088838,88131.0,88130.0,0.00024728]
[1764549158604,0.01134571,88139.0,88130.0,0.00024728]
[1764549158605,0.00045,88147.0,88146.0,0.22689628]
[1764549158726,0.43721,88147.0,88140.0,0.00999999]
[1764549158928,0.34781,88147.0,88144.0,0.23824501]
[1764549159132,0.34781,88147.0,88146.0,0.10120376]
[1764549159351,0.34781,88147.0,88141.0,0.01134545]
[1764549159352,0.09676,88146.0,88130.0,0.01159415]
[1764549159571,0.41,88146.0,88145.0,0.22689885]
[1764549159947,0.41,88146.0,88145.0,0.22713885]
[1764549160146,0.41,88146.0,88145.0,0.28966184]
[1764549160347,0.41,88146.0,88145.0,0.30055387]
[1764549160532,0.09676,88202.0,88185.0,0.01133979]
[1764549160885,0.01134159,88171.0,88160.0,0.01134301]
[1764549161136,0.38,88171.0,88170.0,0.01134172]
[1764549161323,0.38,88171.0,88164.0,0.01134249]
[1764549161324,0.38,88171.0,88140.0,0.00999999]
[1764549161460,0.01088838,88168.0,88151.0,0.01134417]
[1764549161673,0.39088838,88168.0,88152.0,0.10120376]
[1764549161876,0.38,88168.0,88167.0,0.22684224]
[1764549162114,0.38,88168.0,88150.0,0.5746585]
[1764549162294,0.38,88168.0,88165.0,0.01134236]
[1764549162506,0.04818,88152.0,88139.0,0.01134571]
[1764549162722,0.34,88152.0,88151.0,0.22688341]
[1764549162923,0.34736,88152.0,88151.0,0.22688341]
[1764549163124,0.34,88152.0,88151.0,0.22688341]
[1764549163322,0.34736,88152.0,88151.0,0.22688341]
[1764549163844,0.34936,88152.0,88151.0,0.22688341]
[1764549164250,0.34,88152.0,88151.0,0.22688341]
[1764549164422,0.34,88152.0,88151.0,0.24201544]
[1764549164423,0.34736,88152.0,88151.0,0.24201544]
[1764549164623,0.34736,88152.0,88151.0,0.23088341]
[1764549164865,0.34736,88152.0,88151.0,0.22712341]
[1764549165116,0.34,88152.0,88151.0,0.2896464]
[1764549165551,0.34,88152.0,88151.0,0.2906464]
[1764549165756,0.34,88152.0,88151.0,0.22812341]
[1764549165963,0.34,88152.0,88151.0,0.00124]
[1764549166160,0.03796197,88211.0,88204.0,0.01133735]
[1764549166367,0.40011891,88211.0,88210.0,0.01133658]
[1764549166603,0.42307194,88211.0,88210.0,0.00024]
[1764549166878,0.41011891,88211.0,88210.0,0.01157658]
[1764549167218,0.41111891,88211.0,88210.0,0.12367237]
[1764549167421,0.07390063,88262.0,88256.0,0.01133067]
[1764549167663,0.07390063,88262.0,88252.0,0.22662375]
[1764549167664,0.00736,88261.0,88252.0,0.01133118]
[1764549167920,0.36736,88261.0,88253.0,0.01133105]
[1764549168163,0.22663128,88250.0,88218.0,0.01133555]
[1764549168485,0.01088838,88223.0,88218.0,0.22670965]
[1764549168774,0.01088838,88214.0,88208.0,0.01133684]
[1764549168933,0.01133722,88205.0,88190.0,0.01133915]
[1764549169135,0.01133722,88205.0,88202.0,0.01133761]
[1764549169136,0.35,88205.0,88202.0,0.01133761]
[1764549169338,0.35,88205.0,88175.0,0.01134108]
[1764549169339,0.01134005,88183.0,88175.0,0.01134108]
[1764549169553,0.04521,88181.0,88151.0,0.10120376]
[1764549169876,0.01088838,88176.0,88175.0,0.00011891]
[1764549170035,0.41088838,88176.0,88175.0,0.00011891]
[1764549170252,0.50706838,88176.0,88175.0,0.00011891]
[1764549170662,0.4,88176.0,88175.0,0.00011891]
[1764549171085,0.4,88176.0,88175.0,0.22694057]
[1764549171086,0.41336,88176.0,88175.0,0.22694057]
[1764549171289,0.40736,88176.0,88175.0,0.22694057]
[1764549171770,0.4,88176.0,88175.0,0.22694057]
[1764549172110,0.40736,88176.0,88175.0,0.22694057]
[1764549172672,0.40736,88176.0,88175.0,0.22794057]
[1764549172673,0.41336,88176.0,88175.0,0.22794057]
[1764549172877,0.4,88176.0,88175.0,0.22794057]
[1764549173082,0.40736,88176.0,88175.0,0.22794057]
[1764549173271,0.41036,88176.0,88175.0,0.22694057]
[1764549173466,0.40736,88176.0,88175.0,0.22818057]
[1764549173669,0.04521,88206.0,88197.0,0.01133825]
[1764549173893,0.01133889,88192.0,88187.0,0.01133953]
[1764549174095,0.41,88192.0,88188.0,0.22678822]
[1764549174428,0.41,88192.0,88190.0,0.22678308]
[1764549174783,0.00736,88191.0,88190.0,0.22678308]
[1764549175006,0.34736,88191.0,88190.0,0.22678308]
[1764549175986,0.34736,88191.0,88187.0,0.01133953]
[1764549176223,0.01133953,88187.0,88175.0,0.00011891]
[1764549176425,0.04521,88176.0,88175.0,0.00011891]
[1764549176632,0.51963838,88176.0,88175.0,0.00011891]
[1764549177158,0.50875,88176.0,88175.0,0.00011891]
[1764549177354,0.41257,88176.0,88175.0,0.00011891]
[1764549177554,0.51963838,88176.0,88175.0,0.00011891]
[1764549177776,0.36736,88176.0,88175.0,0.00011891]
[1764549178750,0.37436,88176.0,88175.0,0.00011891]
[1764549179323,0.47442838,88176.0,88175.0,0.00011891]
[1764549179509,0.4993225,88176.0,88175.0,0.00011891]
[1764549179708,0.4973225,88176.0,88175.0,0.00011891]
[1764549180042,0.5013225,88176.0,88175.0,0.00011891]
[1764549180244,0.4899625,88176.0,88175.0,0.00011891]
[1764549180447,0.83125634,88176.0,88175.0,0.00011891]
[1764549180645,0.01134648,88133.0,88130.0,0.00024728]
[1764549180889,0.01088838,88131.0,88130.0,0.0006414]
[1764549181255,0.01134816,88120.0,88110.0,4.207e-05]
[1764549181375,0.01134816,88120.0,88117.0,0.02274861]
[1764549181376,0.35039572,88120.0,88117.0,0.02274861]
[1764549181586,0.00736,88119.0,88117.0,0.01140007]
[1764549181857,0.37736,88119.0,88117.0,0.01140007]
[1764549182064,0.37736,88119.0,88117.0,0.01128007]
[1764549182065,0.09618,88118.0,88117.0,0.01128007]
[1764549182269,0.36821,88081.0,88038.0,0.01115]
[1764549182388,0.45521,88081.0,88063.0,0.0113555]
[1764549182588,0.41,88081.0,88079.0,0.22706727]
[1764549182923,0.0074,88080.0,88079.0,0.23842161]
[1764549183091,0.0074,88080.0,88060.0,0.00999999]
[1764549183092,0.44358,88080.0,88069.0,0.01135473]
[1764549183294,0.34,88080.0,88078.0,0.22707049]
[1764549183488,0.0074,88079.0,88077.0,0.0113537]
[1764549183698,0.0074,88079.0,88070.0,0.0113546]
[1764549183699,0.34,88079.0,88066.0,0.06265]
[1764549183920,0.01135434,88072.0,88050.0,0.0016678]
[1764549184130,0.01088838,88057.0,88052.0,0.01135692]
[1764549184485,0.0074,88056.0,88050.0,0.0016678]
[1764549184660,0.3874,88056.0,88053.0,0.01135679]
[1764549184864,0.01135383,88076.0,88061.0,0.01135576]
[1764549185198,0.2384472,88070.0,88052.0,0.01135692]
[1764549185409,0.01135576,88061.0,88050.0,0.0016678]
[1764549185568,0.01135602,88059.0,88050.0,0.0016678]
[1764549185755,0.01088838,88053.0,88050.0,0.0016678]
[1764549185957,0.01088838,88051.0,88050.0,0.0016678]
[1764549186157,0.2271643,88042.0,88013.0,0.01136195]
[1764549186379,0.57545268,88042.0,88041.0,0.05681818]
[1764549186594,0.99463268,88042.0,88041.0,0.04841818]
[1764549186796,0.22724432,88011.0,88010.0,4.218e-05]
[1764549186994,0.04521,88001.0,88000.0,30.16699774]
[1764549187174,0.3474,88001.0,88000.0,30.16699774]
[1764549187373,0.34,88001.0,88000.0,30.39829488]
[1764549187582,0.3474,88001.0,88000.0,30.17102216]
[1764549187995,0.04521,88060.0,88040.0,0.01135847]
[1764549188217,0.00713551,88050.0,88044.0,0.01135795]
[1764549188395,0.01088838,88044.0,88040.0,0.00011825]
[1764549188734,0.41,88044.0,88042.0,0.2271643]
[1764549188937,0.01088838,88041.0,88040.0,0.00011825]
[1764549189148,0.00713551,88050.0,88044.0,0.01135795]
[1764549189305,0.34713551,88050.0,88047.0,0.01135757]
[1764549189519,0.01135808,88043.0,88040.0,0.00011825]
[1764549189722,0.01136053,88024.0,88000.0,30.16699774]
[1764549190018,0.04521,88001.0,88000.0,30.16699774]
[1764549190231,0.39265,88001.0,88000.0,30.16699774]
[1764549190430,0.49746838,88001.0,88000.0,30.16699774]
[1764549190640,0.49734088,88001.0,88000.0,30.16699774]
[1764549191120,0.4864525,88001.0,88000.0,30.16699774]
[1764549191373,1.04761102,88001.0,88000.0,30.16699774]
[1764549191649,0.4790125,88001.0,88000.0,30.16699774]
[1764549191851,0.49734088,88001.0,88000.0,30.16699774]
[1764549192165,0.49734088,88001.0,88000.0,30.48572046]
[1764549192166,0.33991184,88001.0,88000.0,30.48572046]
[1764549192386,0.34535184,88001.0,88000.0,30.39427046]
[1764549192589,0.34535184,88001.0,88000.0,30.48572046]
[1764549192798,0.01135873,88038.0,88021.0,0.01136092]
[1764549193002,0.10112,88023.0,88008.0,0.0113626]
[1764549193334,0.01136324,88003.0,88000.0,30.16699774]
[1764549193511,0.42420376,88001.0,88000.0,30.16799774]
[1764549193755,0.79509214,88001.0,88000.0,30.16699774]
[1764549193921,0.87788376,88001.0,88000.0,30.16699774]
[1764549194125,0.47209214,88001.0,88000.0,30.16699774]
[1764549194302,0.88877214,88001.0,88000.0,30.16604774]
[1764549194873,0.46456838,88001.0,88000.0,30.16604774]
[1764549195086,0.78756838,88001.0,88000.0,30.16604774]
[1764549195302,0.8955475,88001.0,88000.0,29.87509774]
[1764549195507,1.08843038,88001.0,88000.0,29.87509774]
[1764549195715,0.46656838,88001.0,88000.0,29.87509774]
[1764549195916,0.79500838,88001.0,88000.0,29.87509774]
[1764549196135,1.312764,88001.0,88000.0,29.87509774]
[1764549196337,0.9409192,88001.0,88000.0,27.43397776]
[1764549196640,0.9409192,88001.0,88000.0,26.16070334]
[1764549196641,5.91666998,88001.0,88000.0,26.16070334]
[1764549196812,5.95231095,88001.0,88000.0,25.84228277]
[1764549197012,5.94231095,88001.0,88000.0,25.41474646]
[1764549197347,5.94231095,88001.0,88000.0,24.57202379]
[1764549197348,6.034657,88001.0,88000.0,24.57202379]
[1764549197548,1.00801603,88001.0,88000.0,24.20031548]
[1764549197760,1.0304715,88001.0,88000.0,20.84531485]
[1764549197955,1.0107668,88001.0,88000.0,20.33384258]
[1764549198100,4.0312978,88001.0,88000.0,20.29968123]
[1764549198299,1.03171521,88001.0,88000.0,17.84699443]
[1764549198505,1.08397487,88001.0,88000.0,17.45212111]
[1764549198724,1.05464498,88001.0,88000.0,16.09348226]
[1764549198924,1.05764498,88001.0,88000.0,10.05780845]
[1764549199144,0.95052372,88001.0,88000.0,5.60720075]
[1764549199342,0.97066202,88001.0,88000.0,5.15040561]
[1764549199520,1.70276557,88001.0,88000.0,5.11624426]
[1764549199720,1.34024258,88001.0,88000.0,5.02060883]
[1764549199940,1.2883428,88001.0,88000.0,4.95218466]
[1764549200149,1.29923118,88001.0,88000.0,4.93018466]
[1764549200717,0.47795018,88001.0,88000.0,4.93018466]
[1764549200891,0.46456838,88001.0,88000.0,4.93018466]
[1764549201048,0.45368,88001.0,88000.0,4.93018466]
[1764549201251,0.46456838,88001.0,88000.0,4.93018466]
[1764549201456,0.37088838,88001.0,88000.0,4.93018466]
[1764549201876,0.36,88001.0,88000.0,4.93018466]
[1764549202552,0.36429006,88001.0,88000.0,5.02544466]
[1764549202755,0.01135589,88060.0,88022.0,0.22721584]
[1764549203061,0.37011843,88024.0,88000.0,4.92616024]
[1764549203263,0.01136234,88010.0,88000.0,4.92616024]
[1764549203466,0.02840618,88009.0,88000.0,4.92616024]
[1764549203789,0.28370852,88001.0,88000.0,4.92616024]
[1764549203968,0.64370852,88001.0,88000.0,4.92616024]
[1764549204172,0.72522014,88001.0,88000.0,4.92616024]
[1764549204517,0.73610852,88001.0,88000.0,4.92616024]
[1764549204656,0.73610852,88001.0,88000.0,5.03413936]
[1764549204657,0.36,88001.0,88000.0,5.03413936]
[1764549204853,0.22722506,88019.0,88000.0,5.03413936]
[1764549205059,0.36,88019.0,88000.0,5.65958291]
[1764549205259,0.01088838,88015.0,88001.0,0.10797912]
[1764549205461,0.36,88015.0,88003.0,0.10120376]
[1764549205661,0.03,88015.0,88002.0,0.01136337]
[1764549205878,0.4,88015.0,88001.0,0.20918288]
[1764549206370,0.402,88015.0,88001.0,0.20918288]
[1764549206547,0.00011843,88024.0,88021.0,0.01136092]
[1764549206747,0.41011843,88024.0,88017.0,0.00748]
[1764549206957,0.38011843,88024.0,88000.0,4.94616022]
[1764549207160,0.72265038,88001.0,88000.0,4.38158332]
[1764549207310,0.75012292,88001.0,88000.0,4.38158332]
[1764549207505,1.22773938,88001.0,88000.0,3.63795223]
[1764549207731,1.53516938,88001.0,88000.0,3.48501914]
[1764549207939,1.58680399,88001.0,88000.0,3.16886698]
[1764549208141,1.6300282,88001.0,88000.0,2.61835771]
[1764549208374,1.6300282,88001.0,88000.0,2.17351737]
[1764549208574,1.6300282,88001.0,88000.0,2.09116018]
[1764549208732,1.6300282,88001.0,88000.0,2.05703355]
[1764549208920,1.6300282,88001.0,88000.0,2.02290692]
[1764549209119,1.6300282,88001.0,88000.0,1.00672501]
[1764549209321,1.65723655,88001.0,88000.0,0.76679875]
[1764549209521,1.65723655,88001.0,88000.0,0.6711961]
[1764549209724,1.65723655,88001.0,87948.0,0.15943526]
[1764549209725,0.56129289,87949.0,87948.0,0.15943526]
[1764549209927,5.66123633,87949.0,87948.0,0.13490796]
[1764549210132,5.66123633,87949.0,87886.0,0.01141003]
[1764549210133,0.22755976,87889.0,87886.0,0.01141003]
[1764549210345,1.24105046,87889.0,87886.0,0.01141003]
[1764549210785,0.59461004,87888.0,87886.0,0.01141003]
[1764549210992,1.06436842,87888.0,87886.0,0.01141003]
[1764549211163,1.01549842,87888.0,87886.0,0.01141003]
[1764549211378,0.96515492,87888.0,87886.0,0.01141003]
[1764549211574,0.9760433,87888.0,87886.0,0.01141003]
[1764549211798,1.0249133,87888.0,87886.0,0.01141003]
[1764549212159,0.05,87888.0,87886.0,0.01141003]
[1764549212363,0.4,87888.0,87887.0,0.39410294]
[1764549212616,0.01088838,87928.0,87910.0,0.01137527]
[1764549212801,0.01088838,87928.0,87925.0,0.23883836]
[1764549212802,0.41011889,87928.0,87925.0,0.23883836]
[1764549212998,0.38011889,87928.0,87925.0,0.23883836]
[1764549213203,0.01136634,87979.0,87925.0,0.23883836]
[1764549213204,0.09333,87991.0,87956.0,0.01136932]
[1764549213408,0.09333,87991.0,87950.0,0.01137009]
[1764549213409,0.35011891,87991.0,87972.0,0.01136725]
[1764549213579,0.35011891,87991.0,87989.0,0.22730113]
[1764549213965,0.35011891,87991.0,87990.0,0.25663624]
[1764549214399,0.36011891,87991.0,87990.0,0.25663624]
[1764549215028,0.00011891,87991.0,87990.0,0.42100126]
[1764549215325,0.01088838,88046.0,88028.0,0.01136002]
[1764549215520,0.01088838,88040.0,88029.0,0.02499331]
[1764549215721,0.36,88040.0,88018.0,0.01136131]
[1764549215989,0.02083424,88039.0,88016.0,0.01136157]
[1764549216163,0.01088838,88038.0,88027.0,0.01136015]
[1764549216374,0.37,88038.0,88028.0,0.01136002]
[1764549216570,0.37,88038.0,88028.0,0.001]
[1764549216727,0.37,88038.0,88033.0,0.01135937]
[1764549217375,0.37,88038.0,88024.0,0.22721008]
[1764549217569,0.37,88038.0,88005.0,0.01136299]
[1764549217894,0.01136092,88021.0,87990.0,0.02500321]
[1764549218012,0.02840263,88020.0,87992.0,0.01136466]
[1764549218214,0.40844474,88020.0,88001.0,0.0113635]
[1764549218415,0.01088838,88016.0,87995.0,0.01136428]
[1764549218626,0.01088838,88016.0,87975.0,0.01136686]
[1764549218627,0.22725899,88006.0,87975.0,0.01136686]
[1764549218882,0.01088838,87983.0,87972.0,0.01136725]
[1764549219068,0.01088838,88007.0,87990.0,0.01136492]
[1764549219268,0.36,88007.0,87992.0,0.006]
[1764549219444,0.02268149,88006.0,87992.0,0.006]
[1764549219666,0.41,88006.0,88003.0,0.01136324]
[1764549219830,0.41,88006.0,87997.0,0.01136402]
[1764549220032,0.41,88006.0,87978.0,0.10120376]
[1764549220033,0.41,88006.0,87975.0,0.01]
[1764549220233,0.12173747,88005.0,87981.0,0.2386863]
[1764549220481,0.37929585,88005.0,87989.0,0.01136505]
[1764549220660,0.34,88005.0,87995.0,0.01136428]
[1764549220863,0.34,88005.0,87991.0,0.01136479]
[1764549221219,0.34,88005.0,88004.0,0.00390044]
[1764549221348,0.35088838,88005.0,88004.0,0.00390044]
[1764549221566,0.34,88005.0,88004.0,0.00390044]
[1764549221767,0.35088838,88005.0,88004.0,0.00390044]
[1764549221965,0.44421838,88005.0,88004.0,0.00390044]
[1764549222192,0.44421838,88005.0,87992.0,0.00039475]
[1764549222193,0.5502908,87993.0,87992.0,0.01239475]
[1764549222390,0.90117918,87993.0,87938.0,0.22743189]
[1764549222592,0.01088838,87958.0,87945.0,0.01137074]
[1764549222789,0.36,87958.0,87949.0,0.01137022]
[1764549222998,0.37088838,87958.0,87955.0,0.01136945]
[1764549223201,0.36,87958.0,87956.0,0.22738642]
[1764549223381,0.36,87958.0,87956.0,0.31833642]
[1764549223582,0.36,87958.0,87951.0,0.01136996]
[1764549223583,0.02818046,88021.0,87997.0,0.01136402]
[1764549223783,0.01088838,88013.0,88007.0,0.01136273]
[1764549224144,0.34,88013.0,88010.0,0.23860924]
[1764549224338,0.34,88013.0,88012.0,0.22724173]
[1764549225361,0.34,88013.0,88010.0,0.009]
[1764549225572,0.02840521,88012.0,87993.0,0.01136454]
[1764549225713,0.01088838,88006.0,88000.0,0.01136363]
[1764549225912,0.39,88006.0,87995.0,0.01136428]
[1764549226133,0.01088838,88003.0,88000.0,0.01136363]
[1764549226334,0.34,88003.0,87995.0,0.23864737]
[1764549226508,0.34,88003.0,87975.0,0.01136686]
[1764549226509,0.13310181,88002.0,87975.0,0.01136686]
[1764549226718,0.13310181,88002.0,87940.0,0.56704725]
[1764549226719,0.01088838,87991.0,87942.0,0.00748]
[1764549226921,0.01088838,87991.0,87971.0,0.01136738]
[1764549226922,0.01088838,87985.0,87971.0,0.01136738]
[1764549227119,0.33,87985.0,87975.0,0.01136686]
[1764549227357,0.33,87985.0,87980.0,0.01136621]
[1764549227557,0.33,87985.0,87978.0,0.01136647]
[1764549227735,0.33,87985.0,87982.0,0.01136596]
[1764549227935,0.33039607,87985.0,87983.0,0.27619097]
[1764549228305,0.33039607,87985.0,87983.0,0.22731664]
[1764549228509,0.33039607,87985.0,87984.0,0.00061969]
[1764549228960,0.33039607,87985.0,87982.0,0.01]
[1764549228961,0.01088838,87983.0,87982.0,0.01]
[1764549229128,0.41,87983.0,87974.0,0.01136699]
[1764549229438,0.41,87983.0,87968.0,0.01136777]